fUST/lending_fUST_20250103
["ID","MTS","AMOUNT","RATE_DAILY","PERIOD"]
[347491099,1735873845467,-885.68,0.00019452,3]
[347491101,1735873845476,-505.59038227,0.00019452,3]
[347491103,1735873845485,-535.57,0.00019452,3]
[347491106,1735873845494,-505.37387658,0.00019452,3]
[347491108,1735873845503,-784.37,0.00019452,3]
[347491109,1735873845512,-1288.07,0.00019452,3]
[347491111,1735873845521,-500.0,0.00019452,3]
[347491113,1735873845530,-1131.64,0.00019452,3]
[347491115,1735873845541,-500.0,0.00019452,3]
[347491117,1735873845550,-901.92,0.00019452,3]
[347491119,1735873845559,-500.0,0.00019452,3]
[347491121,1735873845568,-1073.39,0.00019452,3]
[347491123,1735873845577,-500.0,0.00019452,3]
[347491125,1735873845587,-500.0,0.00019452,3]
[347491127,1735873845596,-500.0,0.00019452,3]
[347491129,1735873845606,-618.94,0.00019452,3]
[347491131,1735873845615,-636.27,0.00019452,3]
[347491133,1735873845624,-508.87167774,0.00019452,3]
[347491135,1735873845633,-710.73,0.00019452,3]
[347491137,1735873845642,-500.0,0.00019452,3]
[347491139,1735873845651,-509.17922395,0.00019452,3]
[347491141,1735873845660,-500.0,0.00019452,3]
[347491143,1735873845670,-732.88,0.00019452,3]
[347491145,1735873845680,-616.6,0.00019452,3]
[347491147,1735873845689,-565.28,0.00019452,3]
[347491149,1735873845699,-995.06,0.00019452,3]
[347491151,1735873845709,-500.0,0.00019452,3]
[347491154,1735873845719,-500.0,0.00019452,3]
[347491156,1735873845728,-151.0,0.00019452,2]
[347491158,1735873845737,-151.0,0.00019452,2]
[347491160,1735873845747,-2899.03,0.00019452,3]
[347491162,1735873845757,-2253.22,0.00019452,3]
[347491164,1735873845766,-503.41631382,0.00019452,3]
[347491166,1735873845775,-500.0,0.00019452,3]
[347491168,1735873845785,-500.0,0.00019452,3]
[347491170,1735873845795,-500.0,0.00019452,3]
[347491172,1735873845804,-500.0,0.00019452,3]
[347491174,1735873845818,-503.10373908,0.00019452,3]
[347491176,1735873845828,-500.0,0.00019452,3]
[347491178,1735873845838,-553.57,0.00019452,3]
[347491180,1735873845847,-500.0,0.00019452,3]
[347491182,1735873845857,-618.25,0.00019452,3]
[347491184,1735873845869,-585.3,0.00019452,3]
[347491187,1735873845879,-565.24,0.00019452,3]
[347491189,1735873845888,-757.08,0.00019452,3]
[347491191,1735873845897,-151.0,0.00019452,2]
[347491193,1735873845907,-516.95471656,0.00019452,3]
[347491195,1735873845917,-263.97117359,0.00019452,3]
[347491197,1735873845926,-502.91864244,0.00019452,3]
[347491198,1735873845935,-500.0,0.00019452,3]
[347491199,1735873845945,-500.0,0.00019452,3]
[347491200,1735873845955,-500.0,0.00019452,3]
[347491201,1735873845965,-500.0,0.00019452,3]
[347491202,1735873845975,-500.0,0.00019452,3]
[347491203,1735873845984,-1234.67,0.00019452,3]
[347491204,1735873845994,-500.0,0.00019452,3]
[347491205,1735873846004,-5371.44,0.00019452,3]
[347491206,1735873846014,-552.85,0.00019452,3]
[347491207,1735873846024,-500.0,0.00019452,3]
[347491208,1735873846033,-500.0,0.00019452,3]
[347491209,1735873846044,-1361.54,0.00019452,3]
[347491210,1735873846054,-500.0,0.00019452,3]
[347491211,1735873846063,-500.0,0.00019452,3]
[347491212,1735873846073,-510.93457197,0.00019452,3]
[347491213,1735873846083,-500.0,0.00019452,3]
[347491214,1735873846093,-500.0,0.00019452,3]
[347491215,1735873846103,-500.0,0.00019452,3]
[347491216,1735873846112,-500.0,0.00019452,3]
[347491217,1735873846121,-29975.34,0.00019452,3]
[347491218,1735873846131,-1536.43,0.00019452,3]
[347491219,1735873846142,-3983.07,0.00019452,3]
[347491221,1735873846156,-505.01089202,0.00019452,3]
[347491222,1735873846167,-686.65,0.00019452,3]
[347491224,1735873846177,-151.0,0.00019452,2]
[347491226,1735873846187,-151.0,0.00019452,2]
[347491228,1735873846197,-151.0,0.00019452,2]
[347491230,1735873846206,-500.0,0.00019452,3]
[347491232,1735873846216,-506.03513776,0.00019452,3]
[347491234,1735873846225,-500.0,0.00019452,3]
[347491236,1735873846236,-1195.74,0.00019452,3]
[347491238,1735873846246,-500.0,0.00019452,3]
[347491240,1735873846255,-859.6,0.00019452,3]
[347491242,1735873846265,-500.0,0.00019452,3]
[347491244,1735873846274,-500.0,0.00019452,3]
[347491246,1735873846283,-2282.97,0.00019452,3]
[347491248,1735873846293,-941.57,0.00019452,3]
[347491250,1735873846302,-500.0,0.00019452,3]
[347491252,1735873846312,-506.62517698,0.00019452,3]
[347491254,1735873846321,-639.51,0.00019452,3]
[347491256,1735873846331,-500.0,0.00019452,3]
[347491258,1735873846341,-663.27,0.00019452,3]
[347491260,1735873846350,-235.20763035,0.00019452,3]
[347491262,1735873846359,-2681.04,0.00019452,3]
[347491264,1735873846368,-500.0,0.00019452,3]
[347491266,1735873846377,-500.0,0.00019452,3]
[347491269,1735873846387,-500.0,0.00019452,3]
[347491271,1735873846398,-500.0,0.00019452,3]
[347491273,1735873846407,-500.0,0.00019452,3]
[347491275,1735873846416,-500.0,0.00019452,3]
[347491277,1735873846426,-500.0,0.00019452,3]
[347491279,1735873846435,-851.07,0.00019452,3]
[347491281,1735873846444,-500.0,0.00019452,3]
[347491283,1735873846454,-500.0,0.00019452,3]
[347491285,1735873846463,-1204.86,0.00019452,3]
[347491287,1735873846472,-507.51324128,0.00019452,3]
[347491289,1735873846481,-500.0,0.00019452,3]
[347491291,1735873846490,-945.91,0.00019452,3]
[347491293,1735873846499,-500.0,0.00019452,3]
[347491295,1735873846508,-500.0,0.00019452,3]
[347491297,1735873846518,-513.67,0.00019452,3]
[347491299,1735873846527,-500.0,0.00019452,3]
[347491301,1735873846536,-502.16981804,0.00019452,3]
[347491303,1735873846547,-2104.63,0.00019452,3]
[347491305,1735873846556,-154.48,0.00019452,2]
[347491307,1735873846565,-571.6741594,0.00019499,2]
[347491309,1735873846575,-153.0,0.00019585,2]
[347491311,1735873846584,-153.0,0.00019585,2]
[347491313,1735873846593,-153.0,0.00019585,2]
[347491315,1735873846602,-153.0,0.00019585,2]
[347491317,1735873846612,-153.0,0.00019585,2]
[347491319,1735873846621,-153.0,0.00019585,2]
[347491321,1735873846630,-153.0,0.00019585,2]
[347491323,1735873846639,-153.0,0.00019585,2]
[347491325,1735873846648,-153.0,0.00019585,2]
[347491327,1735873846657,-153.0,0.00019585,2]
[347491329,1735873846666,-153.0,0.00019585,2]
[347491332,1735873846676,-153.0,0.00019585,2]
[347491334,1735873846686,-153.0,0.00019585,2]
[347491336,1735873846695,-153.0,0.00019585,2]
[347491338,1735873846704,-153.0,0.00019585,2]
[347491340,1735873846714,-153.0,0.00019585,2]
[347491342,1735873846723,-153.0,0.00019585,2]
[347491344,1735873846732,-153.0,0.00019585,2]
[347491346,1735873846741,-153.0,0.00019585,2]
[347491348,1735873846750,-153.0,0.00019585,2]
[347491350,1735873846759,-153.0,0.00019585,2]
[347491352,1735873846768,-153.0,0.00019585,2]
[347491354,1735873846777,-153.0,0.00019585,2]
[347491356,1735873846786,-153.0,0.00019585,2]
[347491358,1735873846799,-153.0,0.00019585,2]
[347491360,1735873846808,-153.0,0.00019585,2]
[347491362,1735873846818,-153.0,0.00019602,2]
[347491364,1735873846827,-153.0,0.00019602,2]
[347491366,1735873846836,-153.0,0.00019602,2]
[347491368,1735873846846,-153.0,0.00019602,2]
[347491370,1735873846855,-153.0,0.00019602,2]
[347491372,1735873846865,-153.0,0.00019602,2]
[347491374,1735873846874,-153.0,0.00019602,2]
[347491376,1735873846883,-153.0,0.00019602,2]
[347491378,1735873846893,-153.0,0.00019602,2]
[347491380,1735873846902,-153.0,0.00019602,2]
[347491382,1735873846912,-153.0,0.00019602,2]
[347491385,1735873846921,-153.0,0.00019602,2]
[347491387,1735873846931,-153.0,0.00019602,2]
[347491389,1735873846939,-153.0,0.00019602,2]
[347491391,1735873846949,-153.0,0.00019602,2]
[347491393,1735873846958,-153.0,0.00019602,2]
[347491395,1735873846967,-153.0,0.00019602,2]
[347491397,1735873846976,-153.0,0.00019602,2]
[347491399,1735873846986,-153.0,0.00019602,2]
[347491401,1735873846995,-153.0,0.00019602,2]
[347491403,1735873847004,-153.0,0.00019602,2]
[347491405,1735873847013,-153.0,0.00019602,2]
[347491407,1735873847023,-153.0,0.00019602,2]
[347491409,1735873847032,-153.0,0.00019602,2]
[347491411,1735873847041,-153.0,0.00019602,2]
[347491413,1735873847050,-420.0,0.00019606,2]
[347491415,1735873847061,-157.0,0.00019697,2]
[347491417,1735873847071,-157.0,0.00019697,2]
[347491419,1735873847081,-157.0,0.00019697,2]
[347491421,1735873847090,-157.0,0.00019697,2]
[347491423,1735873847099,-151.0,0.000197,2]
[347491425,1735873847108,-151.86227,0.00019726,2]
[347491427,1735873847117,-151.0,0.00019726,2]
[347491429,1735873847126,-6846.73,0.00019726,3]
[347491431,1735873847135,-898.65,0.00019726,3]
[347491433,1735873847149,-500.0,0.00019726,3]
[347491435,1735873847158,-504.0538555,0.00019726,3]
[347491437,1735873847167,-500.0,0.00019726,3]
[347491439,1735873847176,-500.0,0.00019726,3]
[347491441,1735873847185,-500.0,0.00019726,3]
[347491443,1735873847194,-500.0,0.00019726,3]
[347491445,1735873847204,-500.0,0.00019726,3]
[347491447,1735873847213,-500.0,0.00019726,3]
[347491449,1735873847222,-500.0,0.00019726,3]
[347491451,1735873847233,-500.0,0.00019726,3]
[347491454,1735873847243,-485.32367531,0.00019726,3]
[347491456,1735873847252,-500.0,0.00019726,3]
[347491458,1735873847261,-500.0,0.00019726,3]
[347491460,1735873847270,-506.77811409,0.00019726,3]
[347491462,1735873847280,-508.69053195,0.00019726,3]
[347491464,1735873847290,-500.0,0.00019726,3]
[347491466,1735873847299,-503.30281099,0.00019726,3]
[347491468,1735873847309,-500.0,0.00019726,3]
[347491470,1735873847319,-500.0,0.00019726,3]
[347491472,1735873847329,-500.0,0.00019726,3]
[347491474,1735873847338,-6217.16,0.00019726,3]
[347491476,1735873847347,-500.0,0.00019726,3]
[347491478,1735873847356,-500.0,0.00019726,3]
[347491480,1735873847366,-666.52,0.00019726,3]
[347491482,1735873847375,-506.59218164,0.00019726,3]
[347491484,1735873847385,-500.0,0.00019726,3]
[347491486,1735873847395,-500.0,0.00019726,3]
[347491488,1735873847405,-634.97931982,0.00019726,3]
[347491490,1735873847414,-500.0,0.00019726,3]
[347491492,1735873847424,-500.0,0.00019726,3]
[347491494,1735873847433,-500.0,0.00019726,3]
[347491497,1735873847443,-195.11913295,0.00019726,3]
[347491499,1735873847453,-506.6390985,0.00019726,3]
[347491501,1735873847462,-686.81,0.00019726,3]
[347491503,1735873847472,-506.45,0.00019726,2]
[347491505,1735873847481,-574.84393648,0.00019726,3]
[347491507,1735873847491,-546.48,0.00019726,3]
[347491509,1735873847501,-509.13480163,0.00019726,3]
[347491511,1735873847511,-500.0,0.00019726,3]
[347491513,1735873847521,-794.68,0.00019726,3]
[347491515,1735873847532,-500.0,0.00019726,3]
[347491517,1735873847541,-500.0,0.00019726,3]
[347491519,1735873847551,-500.0,0.00019726,3]
[347491521,1735873847561,-445.39916766,0.00019726,3]
[347491523,1735873847570,-508.51903642,0.00019726,3]
[347491525,1735873847580,-252.53442924,0.00019726,3]
[347491527,1735873847590,-318.69309218,0.00019726,3]
[347491529,1735873847599,-500.0,0.00019726,3]
[347491531,1735873847608,-500.0,0.00019726,3]
[347491533,1735873847618,-500.0,0.00019726,3]
[347491535,1735873847628,-500.0,0.00019726,3]
[347491537,1735873847638,-500.0,0.00019726,3]
[347491539,1735873847647,-503.11486534,0.00019726,3]
[347491541,1735873847657,-500.0,0.00019726,3]
[347491543,1735873847667,-500.0,0.00019726,3]
[347491546,1735873847677,-506.4916505,0.00019726,3]
[347491548,1735873847687,-520.90198172,0.00019726,3]
[347491550,1735873847696,-500.0,0.00019726,3]
[347491552,1735873847706,-500.0,0.00019726,3]
[347491554,1735873847716,-500.0,0.00019726,3]
[347491556,1735873847726,-637.86,0.00019726,3]
[347491558,1735873847735,-500.0,0.00019726,3]
[347491560,1735873847745,-500.0,0.00019726,3]
[347491562,1735873847755,-500.0,0.00019726,3]
[347491564,1735873847765,-500.0,0.00019726,3]
[347491566,1735873847775,-566.993005,0.00019726,3]
[347491568,1735873847784,-500.0,0.00019726,3]
[347491570,1735873847794,-500.0,0.00019726,3]
[347491572,1735873847804,-500.0,0.00019726,3]
[347491574,1735873847814,-853.39,0.00019726,3]
[347491576,1735873847824,-500.0,0.00019726,3]
[347491578,1735873847834,-500.0,0.00019726,3]
[347491580,1735873847843,-500.0,0.00019726,3]
[347491582,1735873847853,-562.12,0.00019726,3]
[347491585,1735873847864,-512.91216107,0.00019726,3]
[347491600,1735873847994,-500.0,0.00019726,3]
[347491602,1735873848003,-885.68,0.00019726,3]
[347491604,1735873848013,-535.57,0.00019726,3]
[347491606,1735873848023,-784.37,0.00019726,3]
[347491608,1735873848032,-1288.07,0.00019726,3]
[347491610,1735873848042,-500.0,0.00019726,3]
[347491612,1735873848052,-1131.64,0.00019726,3]
[347491614,1735873848061,-508.5866227,0.00019726,3]
[347491616,1735873848071,-901.92,0.00019726,3]
[347491618,1735873848081,-500.0,0.00019726,3]
[347491620,1735873848090,-1073.39,0.00019726,3]
[347491623,1735873848100,-500.0,0.00019726,3]
[347491624,1735873848109,-500.0,0.00019726,3]
[347491626,1735873848119,-500.0,0.00019726,3]
[347491629,1735873848129,-618.94,0.00019726,3]
[347491631,1735873848141,-636.27,0.00019726,3]
[347491633,1735873848151,-710.73,0.00019726,3]
[347491635,1735873848160,-500.0,0.00019726,3]
[347491637,1735873848171,-500.0,0.00019726,3]
[347491639,1735873848182,-732.88,0.00019726,3]
[347491641,1735873848192,-616.6,0.00019726,3]
[347491643,1735873848201,-565.28,0.00019726,3]
[347491645,1735873848212,-995.06,0.00019726,3]
[347491647,1735873848224,-500.0,0.00019726,3]
[347491649,1735873848235,-500.0,0.00019726,3]
[347491651,1735873848244,-2253.22,0.00019726,3]
[347491653,1735873848254,-2899.03,0.00019726,3]
[347491655,1735873848263,-500.0,0.00019726,3]
[347491657,1735873848272,-507.89787022,0.00019726,3]
[347491659,1735873848282,-500.0,0.00019726,3]
[347491661,1735873848291,-500.0,0.00019726,3]
[347491663,1735873848300,-593.14468082,0.00019726,3]
[347491665,1735873848311,-553.57,0.00019726,3]
[347491667,1735873848320,-442.72116465,0.00019726,3]
[347491669,1735873848330,-618.25,0.00019726,3]
[347491671,1735873848339,-585.3,0.00019726,3]
[347491673,1735873848348,-565.24,0.00019726,3]
[347491675,1735873848358,-757.08,0.00019726,3]
[347491677,1735873848367,-500.0,0.00019726,3]
[347491679,1735873848376,-500.0,0.00019726,3]
[347491681,1735873848386,-500.0,0.00019726,3]
[347491683,1735873848396,-500.0,0.00019726,3]
[347491685,1735873848405,-500.0,0.00019726,3]
[347491687,1735873848414,-1234.67,0.00019726,3]
[347491689,1735873848424,-5371.44,0.00019726,3]
[347491691,1735873848434,-500.0,0.00019726,3]
[347491693,1735873848444,-552.85,0.00019726,3]
[347491695,1735873848453,-500.0,0.00019726,3]
[347491697,1735873848463,-513.71605623,0.00019726,3]
[347491699,1735873848472,-1361.54,0.00019726,3]
[347491701,1735873848482,-500.0,0.00019726,3]
[347491703,1735873848491,-512.83007723,0.00019726,3]
[347491705,1735873848501,-500.0,0.00019726,3]
[347491707,1735873848511,-500.0,0.00019726,3]
[347491709,1735873848520,-500.0,0.00019726,3]
[347491711,1735873848529,-209.6441788,0.00019726,3]
[347491713,1735873848538,-29975.34,0.00019726,3]
[347491715,1735873848548,-1536.43,0.00019726,3]
[347491717,1735873848557,-3983.07,0.00019726,3]
[347491719,1735873848566,-686.65,0.00019726,3]
[347491721,1735873848577,-500.0,0.00019726,3]
[347491723,1735873848587,-500.0,0.00019726,3]
[347491725,1735873848596,-1195.74,0.00019726,3]
[347491728,1735873848607,-508.23164997,0.00019726,3]
[347491729,1735873848617,-859.6,0.00019726,3]
[347491732,1735873848626,-500.0,0.00019726,3]
[347491734,1735873848636,-500.0,0.00019726,3]
[347491736,1735873848645,-941.57,0.00019726,3]
[347491738,1735873848654,-2282.97,0.00019726,3]
[347491740,1735873848664,-500.0,0.00019726,3]
[347491742,1735873848673,-639.51,0.00019726,3]
[347491744,1735873848682,-513.65262619,0.00019726,3]
[347491746,1735873848691,-663.27,0.00019726,3]
[347491748,1735873848701,-2681.04,0.00019726,3]
[347491750,1735873848710,-500.0,0.00019726,3]
[347491752,1735873848719,-500.0,0.00019726,3]
[347491754,1735873848729,-500.0,0.00019726,3]
[347491756,1735873848738,-500.0,0.00019726,3]
[347491758,1735873848747,-500.0,0.00019726,3]
[347491760,1735873848756,-500.0,0.00019726,3]
[347491762,1735873848765,-502.91378671,0.00019726,3]
[347491764,1735873848775,-851.07,0.00019726,3]
[347491765,1735873848784,-500.0,0.00019726,3]
[347491768,1735873848794,-500.0,0.00019726,3]
[347491770,1735873848804,-1204.86,0.00019726,3]
[347491771,1735873848813,-500.0,0.00019726,3]
[347491772,1735873848823,-945.91,0.00019726,3]
[347491774,1735873848832,-500.0,0.00019726,3]
[347491776,1735873848842,-500.0,0.00019726,3]
[347491778,1735873848851,-513.67,0.00019726,3]
[347491780,1735873848860,-598.20284634,0.00019726,3]
[347491782,1735873848870,-2104.63,0.00019726,3]
[347491784,1735873848879,-500.0,0.00019781,2]
[347491785,1735873848888,-2833.12,0.000198,2]
[347491786,1735873848897,-8547.75,0.000198,2]
[347491787,1735873848906,-13292.33,0.000198,2]
[347491788,1735873848916,-151.0,0.000198,2]
[347491789,1735873848925,-151.0,0.000198,2]
[347491790,1735873848935,-151.0,0.000198,2]
[347491791,1735873848944,-151.0,0.000198,2]
[347491792,1735873848953,-286.21,0.00019888,2]
[347491793,1735873848963,-151.0,0.000199,2]
[347491794,1735873848973,-151.0,0.000199,2]
[347491795,1735873848982,-151.0,0.000199,2]
[347491796,1735873848991,-743.88343369,0.000199,2]
[347491797,1735873849001,-480.21674972,0.00019966,2]
[347491798,1735873849011,-500.0,0.0002,2]
[347491799,1735873849020,-500.0,0.0002,2]
[347491801,1735873849029,-384.0,0.0002,2]
[347491803,1735873849039,-151.0,0.0002,2]
[347491804,1735873849048,-6846.73,0.0002,3]
[347491805,1735873849058,-500.0,0.0002,3]
[347491806,1735873849067,-496.97512011,0.0002,3]
[347491807,1735873849076,-502.69071624,0.0002,3]
[347491808,1735873849085,-502.24740304,0.0002,3]
[347491809,1735873849095,-503.57100043,0.0002,3]
[347491810,1735873849104,-214.73282796,0.0002,3]
[347491811,1735873849113,-543.75794325,0.0002,3]
[347491812,1735873849124,-500.0,0.0002,3]
[347491813,1735873849133,-500.0,0.0002,3]
[347491814,1735873849143,-372.14079847,0.0002,3]
[347491815,1735873849153,-247.5733841,0.0002,3]
[347491816,1735873849162,-500.0,0.0002,3]
[347491817,1735873849172,-500.0,0.0002,3]
[347491818,1735873849181,-10804.0,0.0002,2]
[347491819,1735873849191,-500.0,0.0002,3]
[347491820,1735873849200,-500.0,0.0002,3]
[347491821,1735873849210,-6217.16,0.0002,3]
[347491822,1735873849219,-500.0,0.0002,3]
[347491823,1735873849228,-508.89445654,0.0002,3]
[347491824,1735873849237,-666.52,0.0002,3]
[347491825,1735873849247,-505.00352815,0.0002,3]
[347491826,1735873849256,-299.55108189,0.0002,3]
[347491827,1735873849266,-604.15126876,0.0002,3]
[347491828,1735873849276,-500.0,0.0002,3]
[347491829,1735873849285,-686.81,0.0002,3]
[347491830,1735873849295,-506.45,0.0002,2]
[347491831,1735873849305,-546.48,0.0002,3]
[347491832,1735873849314,-500.0,0.0002,3]
[347491833,1735873849323,-794.68,0.0002,3]
[347491834,1735873849333,-512.06807904,0.0002,3]
[347491835,1735873849343,-500.0,0.0002,3]
[347491836,1735873849352,-500.0,0.0002,3]
[347491837,1735873849361,-500.0,0.0002,3]
[347491838,1735873849370,-500.0,0.0002,3]
[347491839,1735873849379,-505.81629836,0.0002,3]
[347491840,1735873849388,-500.0,0.0002,3]
[347491841,1735873849397,-500.0,0.0002,3]
[347491842,1735873849407,-500.0,0.0002,3]
[347491843,1735873849416,-500.0,0.0002,3]
[347491844,1735873849425,-500.0,0.0002,3]
[347491845,1735873849435,-500.0,0.0002,3]
[347491846,1735873849444,-503.24927512,0.0002,3]
[347491847,1735873849453,-637.86,0.0002,3]
[347491848,1735873849462,-505.08697319,0.0002,3]
[347491849,1735873849471,-503.3100612,0.0002,3]
[347491850,1735873849481,-505.6358572,0.0002,3]
[347491851,1735873849490,-503.38913375,0.0002,3]
[347491852,1735873849499,-502.39438756,0.0002,3]
[347491853,1735873849510,-500.0,0.0002,3]
[347491854,1735873849520,-505.485836,0.0002,3]
[347491855,1735873849529,-853.39,0.0002,3]
[347491856,1735873849539,-503.69920846,0.0002,3]
[347491857,1735873849548,-500.0,0.0002,3]
[347491858,1735873849557,-502.84915084,0.0002,3]
[347491859,1735873849567,-562.12,0.0002,3]
[347491860,1735873849576,-364.52283317,0.0002,3]
[347491861,1735873849586,-885.68,0.0002,3]
[347491862,1735873849596,-535.57,0.0002,3]
[347491863,1735873849605,-784.37,0.0002,3]
[347491864,1735873849614,-1288.07,0.0002,3]
[347491865,1735873849624,-259.5,0.0002,3]
[347491866,1735873849633,-1131.64,0.0002,3]
[347491867,1735873849642,-901.92,0.0002,3]
[347491868,1735873849651,-500.0,0.0002,3]
[347491869,1735873849661,-1073.39,0.0002,3]
[347491870,1735873849670,-500.0,0.0002,3]
[347491871,1735873849679,-358.48498112,0.0002,3]
[347491872,1735873849689,-500.0,0.0002,3]
[347491873,1735873849698,-618.94,0.0002,3]
[347491874,1735873849707,-636.27,0.0002,3]
[347491875,1735873849715,-710.73,0.0002,3]
[347491876,1735873849724,-500.0,0.0002,3]
[347491877,1735873849734,-500.0,0.0002,3]
[347491878,1735873849742,-732.88,0.0002,3]
[347491879,1735873849752,-616.6,0.0002,3]
[347491880,1735873849761,-565.28,0.0002,3]
[347491881,1735873849770,-995.06,0.0002,3]
[347491882,1735873849779,-500.0,0.0002,3]
[347491883,1735873849788,-500.0,0.0002,3]
[347491884,1735873849799,-2253.22,0.0002,3]
[347491885,1735873849810,-2899.03,0.0002,3]
[347491886,1735873849819,-500.0,0.0002,3]
[347491887,1735873849829,-220.94104424,0.0002,3]
[347491888,1735873849839,-500.0,0.0002,3]
[347491889,1735873849848,-553.57,0.0002,3]
[347491890,1735873849857,-618.25,0.0002,3]
[347491891,1735873849867,-585.3,0.0002,3]
[347491892,1735873849876,-565.24,0.0002,3]
[347491893,1735873849884,-757.08,0.0002,3]
[347491894,1735873849893,-405.915567,0.0002,3]
[347491895,1735873849903,-500.0,0.0002,3]
[347491896,1735873849912,-508.36605486,0.0002,3]
[347491897,1735873849921,-500.0,0.0002,3]
[347491898,1735873849930,-500.0,0.0002,3]
[347491899,1735873849939,-1234.67,0.0002,3]
[347491900,1735873849949,-5371.44,0.0002,3]
[347491901,1735873849958,-500.0,0.0002,3]
[347491902,1735873849967,-552.85,0.0002,3]
[347491903,1735873849976,-500.0,0.0002,3]
[347491904,1735873849985,-1361.54,0.0002,3]
[347491905,1735873849994,-500.0,0.0002,3]
[347491906,1735873850004,-500.0,0.0002,3]
[347491907,1735873850013,-500.0,0.0002,3]
[347491908,1735873850024,-500.0,0.0002,3]
[347491909,1735873850033,-29975.34,0.0002,3]
[347491910,1735873850042,-1536.43,0.0002,3]
[347491911,1735873850052,-3983.07,0.0002,3]
[347491912,1735873850061,-686.65,0.0002,3]
[347491913,1735873850070,-510.01755214,0.0002,3]
[347491914,1735873850079,-500.0,0.0002,3]
[347491915,1735873850088,-1195.74,0.0002,3]
[347491916,1735873850097,-151.0,0.0002,4]
[347491917,1735873850106,-859.6,0.0002,3]
[347491918,1735873850115,-500.0,0.0002,3]
[347491919,1735873850124,-500.0,0.0002,3]
[347491920,1735873850133,-941.57,0.0002,3]
[347491921,1735873850145,-2282.97,0.0002,3]
[347491922,1735873850158,-500.0,0.0002,3]
[347491923,1735873850167,-639.51,0.0002,3]
[347491924,1735873850176,-663.27,0.0002,3]
[347491925,1735873850186,-2681.04,0.0002,3]
[347491926,1735873850198,-500.0,0.0002,3]
[347491927,1735873850208,-211.87969433,0.0002,3]
[347491928,1735873850217,-504.37394518,0.0002,3]
[347491929,1735873850227,-507.19147407,0.0002,3]
[347491930,1735873850236,-500.0,0.0002,3]
[347491931,1735873850246,-500.0,0.0002,3]
[347491932,1735873850255,-851.07,0.0002,3]
[347491933,1735873850265,-563.78907694,0.0002,3]
[347491934,1735873850274,-500.0,0.0002,3]
[347491935,1735873850283,-1204.86,0.0002,3]
[347491936,1735873850292,-500.0,0.0002,3]
[347491937,1735873850302,-945.91,0.0002,3]
[347491938,1735873850311,-500.0,0.0002,3]
[347491939,1735873850320,-500.0,0.0002,3]
[347491940,1735873850329,-513.67,0.0002,3]
[347491941,1735873850338,-2104.63,0.0002,3]
[347491942,1735873850347,-743.88343341,0.00020003,2]